fUSD/lending_fUSD_20240718
["ID","MTS","AMOUNT","RATE_DAILY","PERIOD"]
[332570686,1721296257612,-380.33604723,0.0003589,14]
[332570687,1721296257621,-500.0,0.0003589,14]
[332570688,1721296257631,-500.0,0.0003589,14]
[332570689,1721296257640,-500.0,0.0003589,14]
[332570690,1721296257650,-500.0,0.0003589,14]
[332570691,1721296257659,-500.0,0.0003589,14]
[332570692,1721296257668,-500.0,0.0003589,14]
[332570693,1721296257678,-500.0,0.0003589,14]
[332570694,1721296257692,-500.0,0.0003589,14]
[332570695,1721296257703,-500.0,0.0003589,14]
[332570696,1721296257712,-500.0,0.0003589,14]
[332570697,1721296257722,-500.0,0.0003589,14]
[332570698,1721296257733,-498.76,0.0003589,14]
[332570699,1721296257743,-500.0,0.0003589,14]
[332570700,1721296257753,-500.0,0.0003589,14]
[332570701,1721296257763,-500.0,0.0003589,14]
[332570702,1721296257774,-500.0,0.0003589,14]
[332570703,1721296257783,-500.0,0.0003589,14]
[332570704,1721296257793,-500.0,0.0003589,14]
[332570705,1721296257803,-500.0,0.0003589,14]
[332570706,1721296257812,-500.0,0.0003589,14]
[332570707,1721296257822,-500.0,0.0003589,14]
[332570708,1721296257831,-592.50134863,0.0003589,14]
[332570709,1721296257840,-500.0,0.0003589,14]
[332570710,1721296257850,-648.08339016,0.0003589,14]
[332570711,1721296257859,-500.0,0.0003589,14]
[332570712,1721296257869,-500.0,0.0003589,14]
[332570713,1721296257878,-500.0,0.0003589,14]
[332570714,1721296257887,-500.0,0.0003589,14]
[332570715,1721296257897,-500.0,0.0003589,14]
[332570716,1721296257906,-500.0,0.0003589,14]
[332570717,1721296257915,-500.0,0.0003589,14]
[332570718,1721296257925,-500.0,0.0003589,14]
[332570719,1721296257936,-500.0,0.0003589,14]
[332570720,1721296257945,-500.0,0.0003589,14]
[332570721,1721296257955,-500.0,0.0003589,14]
[332570722,1721296257964,-500.0,0.0003589,14]
[332570723,1721296257974,-500.0,0.0003589,14]
[332570724,1721296257984,-500.0,0.0003589,14]
[332570725,1721296257993,-500.0,0.0003589,14]
[332570726,1721296258003,-500.0,0.0003589,14]
[332570727,1721296258012,-500.0,0.0003589,14]
[332570728,1721296258021,-500.0,0.0003589,14]
[332570729,1721296258030,-500.0,0.0003589,14]
[332570730,1721296258039,-500.0,0.0003589,14]
[332570731,1721296258049,-500.0,0.0003589,14]
[332570732,1721296258058,-500.0,0.0003589,14]
[332570733,1721296258068,-500.0,0.0003589,14]
[332570734,1721296258078,-500.0,0.0003589,14]
[332570735,1721296258087,-500.0,0.0003589,14]
[332570736,1721296258096,-500.0,0.0003589,14]
[332570737,1721296258105,-500.0,0.0003589,14]
[332570738,1721296258114,-500.0,0.0003589,14]
[332570739,1721296258123,-500.0,0.0003589,14]
[332570740,1721296258132,-500.0,0.0003589,14]
[332570741,1721296258142,-500.0,0.0003589,14]
[332570742,1721296258151,-500.0,0.0003589,14]
[332570743,1721296258160,-500.0,0.0003589,14]
[332570744,1721296258170,-500.0,0.0003589,14]
[332570745,1721296258179,-500.0,0.0003589,14]
[332570746,1721296258188,-500.0,0.0003589,14]
[332570747,1721296258197,-500.0,0.0003589,14]
[332570748,1721296258206,-500.0,0.0003589,14]
[332570749,1721296258215,-507.51044424,0.0003589,14]
[332570750,1721296258224,-500.0,0.0003589,14]
[332570751,1721296258234,-500.0,0.0003589,14]
[332570752,1721296258243,-500.0,0.0003589,14]
[332570753,1721296258253,-500.0,0.0003589,14]
[332570754,1721296258262,-500.0,0.0003589,14]
[332570755,1721296258271,-500.0,0.0003589,14]
[332570756,1721296258279,-500.0,0.0003589,14]
[332570757,1721296258288,-500.0,0.0003589,14]
[332570758,1721296258297,-500.0,0.0003589,14]
[332570759,1721296258307,-500.0,0.0003589,14]
[332570760,1721296258316,-500.0,0.0003589,14]
[332570761,1721296258325,-500.0,0.0003589,14]
[332570762,1721296258334,-500.0,0.0003589,14]
[332570763,1721296258343,-500.0,0.0003589,14]
[332570764,1721296258352,-500.0,0.0003589,14]
[332570765,1721296258361,-500.0,0.0003589,14]
[332570766,1721296258370,-500.0,0.0003589,14]
[332570767,1721296258379,-500.0,0.0003589,14]
[332570768,1721296258388,-500.0,0.0003589,14]
[332570769,1721296258397,-500.0,0.0003589,14]
[332570770,1721296258406,-500.0,0.0003589,14]
[332570771,1721296258416,-500.0,0.0003589,14]
[332570772,1721296258425,-500.0,0.0003589,14]
[332570773,1721296258436,-266.55,0.0003589,14]
[332570774,1721296258446,-500.0,0.0003589,14]
[332570775,1721296258455,-500.0,0.0003589,14]
[332570776,1721296258465,-500.0,0.0003589,14]
[332570777,1721296258474,-500.0,0.0003589,14]
[332570778,1721296258483,-500.0,0.0003589,14]
[332570779,1721296258493,-500.0,0.0003589,14]
[332570780,1721296258502,-500.0,0.0003589,14]
[332570781,1721296258511,-500.0,0.0003589,14]
[332570782,1721296258520,-500.0,0.0003589,14]
[332570783,1721296258529,-500.0,0.0003589,14]
[332570784,1721296258539,-500.0,0.0003589,14]
[332570785,1721296258548,-500.0,0.0003589,14]
[332570786,1721296258557,-500.0,0.0003589,14]
[332570787,1721296258567,-500.0,0.0003589,14]
[332570788,1721296258575,-500.0,0.0003589,14]
[332570789,1721296258585,-500.0,0.0003589,14]
[332570790,1721296258594,-500.0,0.0003589,14]
[332570791,1721296258606,-500.0,0.0003589,14]
[332570792,1721296258616,-500.0,0.0003589,14]
[332570793,1721296258626,-500.0,0.0003589,14]
[332570794,1721296258636,-500.0,0.0003589,14]
[332570795,1721296258646,-500.0,0.0003589,14]
[332570796,1721296258655,-500.0,0.0003589,14]
[332570797,1721296258666,-500.0,0.0003589,14]
[332570798,1721296258676,-500.0,0.0003589,14]
[332570799,1721296258690,-500.0,0.0003589,14]
[332570800,1721296258699,-500.0,0.0003589,14]
[332570801,1721296258711,-500.0,0.0003589,14]
[332570802,1721296258722,-500.0,0.0003589,14]
[332570803,1721296258733,-506.72,0.0003589,14]
[332570804,1721296258743,-79.1903175,0.0003589,14]
[332570805,1721296259166,-420.8096825,0.0003589,14]
[332570806,1721296259176,-500.0,0.0003589,14]
[332570807,1721296259187,-500.0,0.0003589,14]
[332570808,1721296259196,-500.0,0.0003589,14]
[332570809,1721296259205,-500.0,0.0003589,14]
[332570810,1721296259214,-500.0,0.0003589,14]
[332570811,1721296259224,-500.0,0.0003589,14]
[332570812,1721296259234,-500.0,0.0003589,14]
[332570813,1721296259244,-500.0,0.0003589,14]
[332570814,1721296259253,-500.0,0.0003589,14]
[332570815,1721296259263,-500.0,0.0003589,14]
[332570816,1721296259272,-500.0,0.0003589,14]
[332570817,1721296259282,-500.0,0.0003589,14]
[332570818,1721296259292,-500.0,0.0003589,14]
[332570819,1721296259301,-500.0,0.0003589,14]
[332570820,1721296259311,-500.0,0.0003589,14]
[332570821,1721296259320,-500.0,0.0003589,14]
[332570822,1721296259330,-500.0,0.0003589,14]
[332570823,1721296259340,-500.0,0.0003589,14]
[332570824,1721296259350,-500.0,0.0003589,14]
[332570825,1721296259362,-500.0,0.0003589,14]
[332570826,1721296259372,-500.0,0.0003589,14]
[332570827,1721296259384,-500.0,0.0003589,14]
[332570828,1721296259393,-334.85,0.0003589,14]
[332570829,1721296259403,-500.0,0.0003589,14]
[332570830,1721296259411,-500.0,0.0003589,14]
[332570831,1721296259421,-500.0,0.0003589,14]
[332570832,1721296259431,-500.0,0.0003589,14]
[332570833,1721296259441,-500.0,0.0003589,14]
[332570834,1721296259452,-500.0,0.0003589,14]
[332570835,1721296259461,-500.0,0.0003589,14]
[332570836,1721296259471,-500.0,0.0003589,14]
[332570837,1721296259480,-500.0,0.0003589,14]
[332570838,1721296259491,-500.0,0.0003589,14]
[332570839,1721296259500,-457.00769742,0.0003589,14]
[332570840,1721296259510,-500.0,0.0003589,14]
[332570841,1721296259520,-500.0,0.0003589,14]
[332570842,1721296259530,-500.0,0.0003589,14]
[332570843,1721296259541,-500.0,0.0003589,14]
[332570844,1721296259552,-366.82,0.0003589,14]
[332570845,1721296259562,-500.0,0.0003589,14]
[332570846,1721296259572,-500.0,0.0003589,14]
[332570847,1721296259581,-500.0,0.0003589,14]
[332570848,1721296259590,-500.0,0.0003589,14]
[332570849,1721296259599,-500.0,0.0003589,14]
[332570850,1721296259608,-500.0,0.0003589,14]
[332570851,1721296259618,-500.0,0.0003589,14]
[332570852,1721296259627,-500.0,0.0003589,14]
[332570853,1721296259636,-500.0,0.0003589,14]
[332570854,1721296259646,-500.0,0.0003589,14]
[332570855,1721296259655,-500.0,0.0003589,14]
[332570856,1721296259665,-500.0,0.0003589,14]
[332570857,1721296259674,-500.0,0.0003589,14]
[332570858,1721296259685,-500.0,0.0003589,14]
[332570859,1721296259698,-500.0,0.0003589,14]
[332570860,1721296259707,-500.0,0.0003589,14]
[332570861,1721296259716,-500.0,0.0003589,14]
[332570862,1721296259727,-500.0,0.0003589,14]
[332570863,1721296259736,-500.0,0.0003589,14]
[332570864,1721296259746,-500.0,0.0003589,14]
[332570865,1721296259755,-500.0,0.0003589,14]
[332570866,1721296259766,-500.0,0.0003589,14]
[332570867,1721296259776,-165.96,0.0003589,14]
[332570868,1721296259786,-500.0,0.0003589,14]
[332570869,1721296259796,-500.0,0.0003589,14]
[332570870,1721296259805,-540.6712,0.0003589,14]
[332570871,1721296259814,-500.0,0.0003589,14]
[332570872,1721296259824,-500.0,0.0003589,14]
[332570873,1721296259833,-500.0,0.0003589,14]
[332570874,1721296259843,-397.44422459,0.0003589,14]
[332570875,1721296259852,-500.0,0.0003589,14]
[332570876,1721296259861,-500.0,0.0003589,14]
[332570877,1721296259871,-500.0,0.0003589,14]
[332570878,1721296259880,-500.0,0.0003589,14]
[332570879,1721296259890,-500.0,0.0003589,14]
[332570880,1721296259899,-500.0,0.0003589,14]
[332570881,1721296259909,-500.0,0.0003589,14]
[332570882,1721296259918,-500.0,0.0003589,14]
[332570883,1721296259928,-500.0,0.0003589,14]
[332570884,1721296259937,-500.0,0.0003589,14]
[332570885,1721296259947,-500.0,0.0003589,14]
[332570886,1721296259957,-500.0,0.0003589,14]
[332570887,1721296259967,-500.0,0.0003589,14]
[332570888,1721296259976,-500.0,0.0003589,14]
[332570889,1721296259985,-500.0,0.0003589,14]
[332570890,1721296259994,-500.0,0.0003589,14]
[332570891,1721296260004,-500.0,0.0003589,14]
[332570892,1721296260013,-500.0,0.0003589,14]
[332570893,1721296260023,-500.0,0.0003589,14]
[332570894,1721296260033,-500.0,0.0003589,14]
[332570895,1721296260042,-500.0,0.0003589,14]
[332570896,1721296260052,-500.0,0.0003589,14]
[332570897,1721296260062,-500.0,0.0003589,14]
[332570898,1721296260071,-500.0,0.0003589,14]
[332570899,1721296260081,-500.0,0.0003589,14]
[332570900,1721296260091,-500.0,0.0003589,14]
[332570901,1721296260100,-500.0,0.0003589,14]
[332570902,1721296260109,-411.66,0.0003589,14]
[332570903,1721296260119,-500.0,0.0003589,14]
[332570904,1721296260128,-500.0,0.0003589,14]
[332570905,1721296260137,-500.0,0.0003589,14]
[332570906,1721296260147,-500.0,0.0003589,14]
[332570907,1721296260156,-500.0,0.0003589,14]
[332570908,1721296260165,-500.0,0.0003589,14]
[332570909,1721296260174,-500.0,0.0003589,14]
[332570910,1721296260185,-500.0,0.0003589,14]
[332570911,1721296260195,-500.0,0.0003589,14]
[332570912,1721296260204,-500.0,0.0003589,14]
[332570913,1721296260216,-500.0,0.0003589,14]
[332570914,1721296260226,-500.0,0.0003589,14]
[332570915,1721296260235,-500.0,0.0003589,14]
[332570916,1721296260245,-500.0,0.0003589,14]
[332570917,1721296260254,-500.0,0.0003589,14]
[332570918,1721296260264,-500.0,0.0003589,14]
[332570919,1721296260274,-405.92940359,0.0003589,14]
[332570920,1721296260283,-500.0,0.0003589,14]
[332570921,1721296260293,-500.0,0.0003589,14]
[332570922,1721296260302,-500.0,0.0003589,14]
[332570923,1721296260311,-500.0,0.0003589,14]
[332570924,1721296260321,-500.0,0.0003589,14]
[332570925,1721296260330,-500.0,0.0003589,14]
[332570926,1721296260339,-500.0,0.0003589,14]
[332570927,1721296260350,-500.0,0.0003589,14]
[332570928,1721296260359,-500.0,0.0003589,14]
[332570929,1721296260369,-549.75,0.0003589,14]
[332570930,1721296260378,-500.0,0.0003589,14]
[332570931,1721296260387,-500.0,0.0003589,14]
[332570932,1721296260397,-500.0,0.0003589,14]
[332570933,1721296260406,-500.0,0.0003589,14]
[332570934,1721296260416,-500.0,0.0003589,14]
[332570935,1721296260427,-500.0,0.0003589,14]
[332570936,1721296260438,-500.0,0.0003589,14]
[332570937,1721296260448,-500.0,0.0003589,14]
[332570938,1721296260458,-500.0,0.0003589,14]
[332570939,1721296260467,-500.0,0.0003589,14]
[332570940,1721296260477,-500.0,0.0003589,14]
[332570941,1721296260486,-500.0,0.0003589,14]
[332570942,1721296260495,-500.0,0.0003589,14]
[332570943,1721296260505,-500.0,0.0003589,14]
[332570944,1721296260514,-500.0,0.0003589,14]
[332570945,1721296260523,-500.0,0.0003589,14]
[332570946,1721296260533,-500.0,0.0003589,14]
[332570947,1721296260541,-500.0,0.0003589,14]
[332570948,1721296260550,-500.0,0.0003589,14]
[332570949,1721296260559,-500.0,0.0003589,14]
[332570950,1721296260568,-500.0,0.0003589,14]
[332570951,1721296260578,-500.0,0.0003589,14]
[332570952,1721296260587,-500.0,0.0003589,14]
[332570953,1721296260596,-500.0,0.0003589,14]
[332570954,1721296260606,-500.0,0.0003589,14]
[332570955,1721296260615,-500.0,0.0003589,14]
[332570956,1721296260624,-500.0,0.0003589,14]
[332570957,1721296260634,-500.0,0.0003589,14]
[332570958,1721296260643,-500.0,0.0003589,14]
[332570959,1721296260653,-500.0,0.0003589,14]
[332570960,1721296260662,-500.0,0.0003589,14]
[332570961,1721296260673,-500.0,0.0003589,14]
[332570962,1721296260684,-500.0,0.0003589,14]
[332570963,1721296260696,-500.0,0.0003589,14]
[332570964,1721296260705,-500.0,0.0003589,14]
[332570965,1721296260714,-613.45761742,0.0003589,14]
[332570966,1721296260724,-500.0,0.0003589,14]
[332570967,1721296260735,-500.0,0.0003589,14]
[332570968,1721296260744,-500.0,0.0003589,14]
[332570969,1721296260753,-500.0,0.0003589,14]
[332570970,1721296260763,-500.0,0.0003589,14]
[332570971,1721296260773,-500.0,0.0003589,14]
[332570972,1721296260783,-500.0,0.0003589,14]
[332570973,1721296260792,-500.0,0.0003589,14]
[332570974,1721296260802,-500.0,0.0003589,14]
[332570975,1721296260811,-500.0,0.0003589,14]
[332570976,1721296260821,-215.2165606,0.0003589,14]
[332570977,1721296261021,-284.7834394,0.0003589,14]
[332570978,1721296261030,-500.0,0.0003589,14]
[332570979,1721296261040,-500.0,0.0003589,14]
[332570980,1721296261050,-500.0,0.0003589,14]
[332570981,1721296261059,-500.0,0.0003589,14]
[332570982,1721296261070,-500.0,0.0003589,14]
[332570983,1721296261079,-378.58556337,0.0003589,14]
[332570984,1721296261572,-121.41443663,0.0003589,14]
[332570985,1721296261581,-500.0,0.0003589,14]
[332570986,1721296261591,-500.0,0.0003589,14]
[332570987,1721296261600,-500.0,0.0003589,14]
[332570988,1721296261610,-500.0,0.0003589,14]
[332570989,1721296261619,-612.05,0.0003589,14]
[332570990,1721296261629,-500.0,0.0003589,14]
[332570991,1721296261638,-500.0,0.0003589,14]
[332570992,1721296261648,-612.05,0.0003589,14]
[332570993,1721296261659,-500.0,0.0003589,14]
[332570994,1721296261670,-612.05,0.0003589,14]
[332570995,1721296261680,-11.2986488,0.0003589,14]
[332570996,1721296261696,-488.7013512,0.0003589,14]
[332570997,1721296261705,-500.0,0.0003589,14]
[332570998,1721296261714,-500.0,0.0003589,14]
[332570999,1721296261723,-612.05,0.0003589,14]
[332571000,1721296261734,-500.0,0.0003589,14]
[332571001,1721296261744,-612.05,0.0003589,14]
[332571002,1721296261754,-332.88148241,0.0003589,14]
[332571003,1721296261771,-167.11851759,0.0003589,14]
[332571004,1721296261780,-142.88365241,0.0003589,14]
[332571005,1721296261792,-469.16634759,0.0003589,14]
[332571006,1721296261801,-399.03885689,0.0003589,14]
[332571007,1721296261810,-500.0,0.0003589,14]
[332571008,1721296261822,-612.05,0.0003589,14]
[332571009,1721296261831,-377.28101204,0.0003589,14]
[332571010,1721296261840,-500.0,0.0003589,14]
[332571011,1721296261850,-612.05,0.0003589,14]
[332571012,1721296261860,-500.0,0.0003589,14]
[332571013,1721296261870,-612.05,0.0003589,14]
[332571014,1721296261879,-500.0,0.0003589,14]
[332571015,1721296261889,-612.05,0.0003589,14]
[332571016,1721296261898,-500.0,0.0003589,14]
[332571017,1721296261907,-37.91113543,0.0003589,14]
[332571018,1721296261926,-462.08886457,0.0003589,14]
[332571019,1721296261936,-500.0,0.0003589,14]
[332571020,1721296261946,-500.0,0.0003589,14]
[332571021,1721296261956,-500.0,0.0003589,14]
[332571022,1721296261966,-500.0,0.0003589,14]
[332571023,1721296261976,-500.0,0.0003589,14]
[332571024,1721296261986,-500.0,0.0003589,14]
[332571025,1721296261996,-500.0,0.0003589,14]
[332571026,1721296262006,-500.0,0.0003589,14]
[332571027,1721296262016,-500.0,0.0003589,14]
[332571028,1721296262026,-500.0,0.0003589,14]
[332571029,1721296262035,-500.0,0.0003589,14]
[332571030,1721296262045,-500.0,0.0003589,14]
[332571031,1721296262057,-500.0,0.0003589,14]
[332571032,1721296262067,-317.34598654,0.0003589,14]
[332571033,1721296262080,-182.65401346,0.0003589,14]
[332571034,1721296262090,-207.85,0.0003589,14]
[332571035,1721296262099,-500.0,0.0003589,14]
[332571036,1721296262109,-66.3278258,0.0003589,14]
[332571037,1721296262121,-278.88240566,0.0003589,14]
[332571038,1721296262133,-154.78976854,0.0003589,14]
[332571039,1721296262143,-500.0,0.0003589,14]
[332571040,1721296262153,-500.0,0.0003589,14]
[332571041,1721296262163,-500.0,0.0003589,14]
[332571042,1721296262173,-500.0,0.0003589,14]
[332571043,1721296262184,-500.0,0.0003589,14]
[332571044,1721296262193,-500.0,0.0003589,14]
[332571045,1721296262202,-98.65413146,0.0003589,14]
[332571046,1721296262219,-387.7,0.0003589,14]
[332571051,1721296322165,-157.1205528,0.00015,2]
[332571052,1721296363868,-92.8794472,0.00015,2]
[332571053,1721296363890,-158.75086071,0.00015,2]
[332571054,1721296382755,-164.42527991,0.00015,2]
[332571055,1721296385523,-300.12954062,0.00015,2]
[332571056,1721296391156,-174.44840365,0.00015,2]
[332571057,1721296394726,-6.99535196,0.00015,2]
[332571058,1721296394749,-180.21705847,0.00015,2]
[332571059,1721296396144,-291.0324454,0.00015,2]
[332571060,1721296403205,-521.75514417,0.00015,2]
[332571061,1721296404867,-275.1289478,0.00015,2]
[332571067,1721296487439,-224.8710522,0.00015,2]
[332571068,1721296498171,-75.25848842,0.00015,2]
[332571069,1721296498192,-158.75086071,0.00015,2]
[332571070,1721296498212,-139.02537706,0.00015,2]
[332571071,1721296499673,-152.00706834,0.00015,2]
[332571072,1721296503525,-158.75086071,0.00015,2]
[332571073,1721296505325,-300.12954062,0.00015,2]
[332571074,1721296506281,-181.44375561,0.00015,2]
[332571075,1721296520190,-244.85251003,0.00015,2]
[332571076,1721296520851,-373.03472619,0.00015,2]
[332571077,1721296521530,-178.99685575,0.00015,2]
[332571078,1721296536132,-181.44375561,0.00015,2]
[332571079,1721296603863,-291.0324454,0.00015,2]
[332571080,1721296607424,-245.33322903,0.00015,2]
[332571087,1721296800949,-300.0,0.00014999,2]
[332571088,1721296801675,-300.0,0.00014999,2]
[332571089,1721296811916,-54.79631159,0.00015,2]
[332571090,1721296811937,-142.38596077,0.00015,2]
[332571095,1721297002166,150.0,0.00013699,2]
[332571096,1721297002185,50.0,0.00013699,2]
[332571098,1721297078064,100.0,0.00013699,2]
[332571099,1721297078086,150.0,0.00013699,2]
[332571100,1721297078106,50.12954062,0.00013699,2]
[332571101,1721297081802,206.99101218,0.00013699,2]
[332571102,1721297081823,84.04143322,0.00013699,2]
[332571103,1721297087265,74.70942749,0.00013699,2]
[332571104,1721297087287,84.04143322,0.00013699,2]
[332571106,1721297095267,158.75086071,0.00013699,2]
[332571108,1721297113861,14.51243318,0.00013699,2]
[332571109,1721297113881,150.0,0.00013699,2]
[332571110,1721297113902,16.93132243,0.00013699,2]
[332571112,1721297118764,133.19821819,0.00013699,2]
[332571113,1721297118787,174.44840365,0.00013699,2]
[332571114,1721297118808,187.21241043,0.00013699,2]
[332571115,1721297118833,219.30759917,0.00013699,2]
[332571117,1721297156821,291.0324454,0.00013699,2]
[332571118,1721297157100,180.21705847,0.00013699,2]
[332571119,1721297158299,164.42527991,0.00013699,2]
[332571121,1721297190819,150.0,0.00013699,2]
[332571122,1721297190840,31.44375561,0.00013699,2]
[332571123,1721297193094,118.55624439,0.00013699,2]
[332571124,1721297193117,181.57329623,0.00013699,2]
[332571125,1721297228778,40.18184794,0.00013699,2]
[332571126,1721297228799,150.0,0.00013699,2]
[332571127,1721297228818,150.0,0.00013699,2]
[332571128,1721297228838,150.0,0.00013699,2]
[332571129,1721297229022,189.02537706,0.00013699,2]
[332571130,1721297229043,117.67686697,0.00013699,2]
[332571132,1721297264821,150.0,0.00013699,2]
[332571133,1721297264842,141.0324454,0.00013699,2]
[332571136,1721297298813,8.9675546,0.00013699,2]
[332571137,1721297298837,172.47620101,0.00013699,2]
[332571138,1721297308583,72.29107717,0.00013699,2]
[332571139,1721297308605,150.0,0.00013699,2]
[332571140,1721297308626,77.83846345,0.00013699,2]
[332571141,1721297323504,72.16153655,0.00013699,2]
[332571142,1721297323526,86.58932416,0.00013699,2]
[332571143,1721297323592,94.98397207,0.00013699,2]
[332571144,1721297323612,205.14556855,0.00013699,2]
[332571145,1721297350714,39.70694148,0.00013699,2]
[332571146,1721297350776,150.0,0.00013699,2]
[332571147,1721297350799,10.29305852,0.00013699,2]
[332571148,1721297367078,139.70694148,0.00013699,2]
[332571149,1721297367099,149.81879122,0.00013699,2]
[332571150,1721297378895,102.21279072,0.00013699,2]
[332571151,1721297378916,79.23096489,0.00013699,2]
[332571152,1721297380777,102.21279072,0.00013699,2]
[332571153,1721297380799,291.0324454,0.00013699,2]
[332571154,1721297380821,403.63885585,0.00013699,2]
[332571158,1721297432078,-163.56605059,0.000149,2]
[332571159,1721297432090,-200.0,0.000149,2]
[332571160,1721297432099,-143.0149101,0.00015708,2]
[332571161,1721297432144,-5248.8748316,0.00015708,2]
[332571162,1721297432154,-774.37592563,0.00015755,2]
[332571163,1721297432164,-300.0,0.00015755,2]
[332571164,1721297432174,-2026.32372476,0.00015756,2]
[332571165,1721297432183,-3794.07216716,0.00015999,2]
[332571166,1721297432193,-156.01153217,0.00015999,2]
[332571167,1721297432202,-835.4681348,0.00015999,2]
[332571168,1721297432212,-5000.0,0.00016,2]
[332571169,1721297432221,-300.0,0.00016018,2]
[332571170,1721297432231,-300.0,0.00016018,2]
[332571171,1721297432241,-345.08304306,0.00016115,2]
[332571172,1721297432250,-400.0,0.0001627,2]
[332571173,1721297432260,-684.79,0.00016471,2]
[332571174,1721297432269,-172.10920489,0.00016605,2]
[332571175,1721297432279,-181.44375561,0.00016605,2]
[332571176,1721297432288,-291.0324454,0.00016605,2]
[332571177,1721297432298,-978.4295,0.00016612,2]
[332571178,1721297432307,-183.43841317,0.000167,2]
[332571179,1721297432317,-700.7145893,0.000167,2]
[332571180,1721297432327,-173.62196542,0.00016706,2]
[332571181,1721297432337,-657.49490822,0.00016707,2]
[332571182,1721297432347,-180.43,0.00016712,2]
[332571183,1721297432356,-499.99,0.00016985,2]
[332571184,1721297432366,-917.22327281,0.00016985,2]
[332571185,1721297432375,-654.24140879,0.00016985,2]
[332571186,1721297432384,-164.08458093,0.00016985,2]
[332571187,1721297432393,-300.0,0.00017,2]
[332571188,1721297432403,-420.0,0.0001723,2]
[332571189,1721297432412,-202.45814519,0.00017491,2]
[332571190,1721297432421,-210.55156384,0.00017778,2]
[332571191,1721297432430,-159.1434954,0.00017779,2]
[332571192,1721297432439,-169.35218131,0.00017779,2]
[332571193,1721297432447,-157.1205528,0.00017779,2]
[332571194,1721297432457,-946.5561817,0.00017779,2]
[332571195,1721297432466,-227.41308538,0.0001778,2]
[332571196,1721297432475,-203.02983206,0.0001778,2]
[332571197,1721297432483,-890.40343046,0.00017781,2]
[332571198,1721297432492,-254.61290254,0.00017781,2]
[332571199,1721297432501,-890.40343046,0.00017781,2]
[332571200,1721297432511,-254.61290254,0.00017781,2]
[332571201,1721297432520,-150.0,0.00017782,2]
[332571202,1721297432530,-191.68,0.00017993,2]
[332571203,1721297432539,-600.0,0.00018047,2]
[332571204,1721297432549,-250.0,0.00018098,2]
[332571205,1721297432558,-200.0,0.00018099,2]
[332571206,1721297432567,-904.47069831,0.00018182,2]
[332571207,1721297432576,-295.05,0.00018252,2]
[332571208,1721297432586,-206.4,0.00018272,2]
[332571209,1721297432595,-165.83358507,0.00018418,2]
[332571210,1721297432603,-2141.94953477,0.0001842,2]
[332571211,1721297432613,-18986.15,0.0001843,2]
[332571212,1721297432622,-3162.14,0.000186,2]
[332571213,1721297432631,-3272.80559963,0.000186,2]
[332571214,1721297432641,-250.0,0.00018632,2]
[332571215,1721297432651,-684.79,0.00018735,2]
[332571216,1721297432660,-287.0,0.00018843,2]